bitfinex/quotes_ETHUSD_20260310
["timestamp","ask_amount","ask_price","bid_price","bid_amount"]
[1773157081520,2.53206577,2071.9,2070.7,0.4812427]
[1773157081815,1.46598864,2072.1,2070.9,0.4812427]
[1773157082313,0.45298864,2071.8,2070.7,1.20732119]
[1773157082919,0.45298864,2072.3,2070.8,0.4812427]
[1773157083092,1.20644725,2072.2,2071.0,0.4812427]
[1773157083821,1.20644725,2072.2,2071.0,1.4892427]
[1773157084002,0.45298864,2072.0,2071.0,1.008]
[1773157084504,0.45298864,2071.8,2071.0,1.008]
[1773157084815,0.45298864,2071.8,2071.0,1.05628585]
[1773157085115,0.45298864,2071.8,2071.0,2.26339054]
[1773157085593,0.45298864,2071.8,2071.0,1.05628585]
[1773157085795,0.45298864,2071.7,2070.5,1.007]
[1773157086516,1.20679667,2071.6,2070.6,1.2073795]
[1773157086849,0.45298864,2071.1,2070.2,1.20757666]
[1773157087125,0.45298864,2070.8,2070.0,1.007]
[1773157087422,0.45298864,2070.8,2070.0,2.21472879]
[1773157087598,0.45298864,2070.8,2070.1,0.04830684]
[1773157087799,0.45298864,2070.8,2070.0,2.21472879]
[1773157088027,0.45298864,2070.8,2070.0,2.26146903]
[1773157088192,0.45298864,2070.8,2069.7,1.20786207]
[1773157088589,1.20732119,2070.7,2069.7,1.20786207]
[1773157088789,1.66030983,2070.7,2069.7,1.20786207]
[1773157089022,2.32671706,2070.3,2069.2,2.69641793]
[1773157089194,0.45298864,2070.5,2069.2,5.02313499]
[1773157089603,0.45298864,2070.5,2069.3,0.4812427]
[1773157090500,0.45298864,2070.5,2070.3,0.001]
[1773157090705,1.66047076,2070.5,2069.4,1.68932233]
[1773157091130,0.45298864,2070.4,2069.4,1.20807963]
[1773157091630,0.45298864,2070.2,2069.3,1.20810567]
[1773157091932,0.45298864,2070.2,2069.2,2.215181]
[1773157092631,1.20767112,2070.1,2069.2,2.215181]
[1773157092834,1.66063967,2070.2,2069.2,2.215181]
[1773157093698,1.20765103,2070.2,2069.2,2.6964237]
[1773157094332,1.66063967,2070.2,2069.2,2.6964237]
[1773157095112,1.66063147,2070.2,2069.2,2.6964237]
[1773157096443,0.45298864,2070.1,2069.2,1.007]
[1773157096599,1.66077645,2069.9,2069.2,1.007]
[1773157096801,0.45298864,2069.8,2069.1,0.001]
[1773157097001,0.45298864,2069.4,2068.9,0.001]
[1773157098101,0.45298864,2069.1,2068.6,0.001]
[1773157098736,1.20831319,2069.0,2068.6,0.001]
[1773157099623,1.20813801,2069.3,2068.6,0.001]
[1773157099812,1.20812606,2069.4,2068.6,0.001]
[1773157100412,4.03372507,2069.4,2068.6,0.001]
[1773157100929,1.69816761,2069.4,2068.6,0.001]
[1773157101106,0.49004155,2069.3,2068.6,0.001]
[1773157101823,0.49004155,2069.0,2068.4,0.001]
[1773157102022,2.82559901,2068.8,2068.3,0.001]
[1773157102415,0.49004155,2068.8,2068.3,0.001]
[1773157102805,1.20848842,2068.7,2068.3,0.001]
[1773157103007,0.49004155,2068.8,2068.3,0.001]
[1773157103224,0.49004155,2069.2,2068.3,0.001]
[1773157103437,4.83464624,2069.3,2068.3,0.49643569]
[1773157103639,4.83464624,2069.3,2068.5,0.001]
[1773157103640,2.82559901,2069.2,2068.5,0.001]
[1773157103807,0.49004155,2069.1,2068.5,0.001]
[1773157104209,0.002,2069.3,2068.5,0.001]
[1773157104428,0.49004155,2069.1,2068.5,0.001]
[1773157104936,1.20831319,2069.0,2068.5,0.001]
[1773157105614,1.69831513,2069.1,2068.5,0.001]
[1773157105932,1.2081964,2069.2,2068.5,0.001]
[1773157106139,0.49004155,2069.1,2068.5,0.001]
[1773157107716,1.20831319,2069.0,2068.5,0.001]
[1773157107920,0.49004155,2068.7,2067.8,0.001]
[1773157108133,2.82559901,2068.3,2067.8,0.001]
[1773157108820,2.82559901,2068.5,2067.8,0.001]
[1773157109018,0.49004155,2068.4,2067.8,0.001]
[1773157109253,2.82559901,2068.2,2067.1,1.20942383]
[1773157109434,0.49004155,2067.8,2066.9,1.006]
[1773157109618,0.49004155,2067.8,2066.9,2.21552677]
[1773157109947,1.20907288,2067.7,2066.9,1.006]
[1773157110119,1.69910069,2067.8,2066.9,1.006]
[1773157110524,0.49004155,2067.8,2066.9,1.006]
[1773157110753,1.20903087,2067.8,2066.9,1.006]
[1773157111114,0.49004155,2068.3,2067.0,0.04135997]
[1773157111415,0.49004155,2068.3,2067.0,0.49543569]
[1773157111610,0.49004155,2068.3,2066.9,1.006]
[1773157111611,0.49004155,2068.3,2067.3,0.49543569]
[1773157111814,1.69879424,2068.3,2067.4,1.20924833]
[1773157112251,1.20872351,2068.3,2067.4,1.70468402]
[1773157112942,0.49004155,2068.2,2067.1,1.70485952]
[1773157113455,0.49004155,2068.5,2067.3,0.49543569]
[1773157113960,1.20848842,2068.7,2067.5,0.49543569]
[1773157114254,0.49004155,2068.6,2067.5,0.49543569]
[1773157114429,0.49004155,2068.6,2067.6,0.04029035]
[1773157114842,1.20848842,2068.7,2067.7,0.49543569]
[1773157115152,1.71873444,2068.8,2067.8,0.04028645]
[1773157115318,1.71873444,2068.8,2067.7,0.49543569]
[1773157115724,2.20877599,2068.8,2067.7,0.49543569]
[1773157116020,0.51025833,2068.8,2067.9,0.49543569]
[1773157117355,0.40816664,2068.8,2068.2,0.49543569]
[1773157117536,1.21014285,2069.3,2068.3,0.49543569]
[1773157117732,2.33555746,2069.2,2068.2,2.53762518]
[1773157117947,1.69826247,2069.2,2068.3,1.20872213]
[1773157118139,0.002,2069.3,2068.4,0.49543569]
[1773157118337,1.21015745,2069.3,2068.4,0.49543569]
[1773157118659,0.002,2069.3,2068.4,0.49543569]
[1773157118844,0.002,2069.3,2068.6,0.49543569]
[1773157120056,0.002,2069.3,2068.7,1.20848842]
[1773157120363,0.002,2069.3,2068.8,2.83099315]
[1773157120657,0.002,2069.3,2068.8,0.49543569]
[1773157120861,0.002,2069.3,2068.9,1.005]
[1773157121959,0.002,2069.3,2068.9,2.2133689]
[1773157122254,0.002,2069.3,2068.9,2.21336177]
[1773157122462,0.002,2069.3,2068.9,1.005]
[1773157122866,0.002,2069.3,2068.9,2.21336929]
[1773157123243,0.002,2069.3,2068.3,6.33410985]
[1773157124068,0.002,2069.3,2068.4,0.49543569]
[1773157124378,0.002,2069.5,2068.4,0.49543569]
[1773157125061,0.002,2069.5,2068.4,0.54378223]
[1773157125469,0.002,2069.5,2068.6,0.49543569]
[1773157125831,0.002,2069.5,2068.9,0.49543569]
[1773157126142,0.002,2069.5,2069.0,2.70874888]
[1773157127059,0.002,2069.8,2069.1,0.49164062]
[1773157127464,0.002,2069.8,2069.0,2.21331319]
[1773157127667,0.49752434,2069.8,2069.0,2.21331319]
[1773157127990,0.002,2069.1,2069.0,2.21331319]
[1773157128199,0.002,2069.3,2069.0,2.21331319]
[1773157128380,0.002,2069.3,2069.0,2.21330216]
[1773157128684,0.002,2069.3,2069.0,2.21330908]
[1773157130576,0.002,2069.3,2069.0,1.005]
[1773157130807,0.002,2069.3,2069.0,2.21330397]
[1773157130986,0.002,2069.3,2069.0,1.005]
[1773157131367,0.4892156,2069.1,2068.1,1.20883903]
[1773157131886,0.4892156,2069.1,2068.1,4.04402359]
[1773157132092,2.33555746,2068.4,2067.6,0.001]
[1773157132295,4.67111492,2068.8,2067.6,0.001]
[1773157132296,1.20854684,2068.6,2067.6,0.001]
[1773157132657,0.4892156,2068.7,2067.8,2.33555746]
[1773157132883,1.69770542,2068.7,2067.9,1.003]
[1773157133300,0.4892156,2068.7,2067.9,1.003]
[1773157133464,1.69753016,2069.0,2067.9,1.003]
[1773157133995,4.83284859,2069.2,2068.0,0.4996271]
[1773157134167,5.32206419,2069.2,2068.0,0.4996271]
[1773157134371,5.32206419,2069.2,2068.1,1.20883903]
[1773157134584,1.697412,2069.2,2068.1,1.20883903]
[1773157134783,1.697412,2069.2,2068.1,3.54439649]
[1773157134984,1.697412,2069.2,2068.1,4.04402359]
[1773157136389,1.69746545,2069.2,2068.1,4.04402359]
[1773157137276,1.21018446,2069.3,2068.4,2.33555746]
[1773157137476,1.21018446,2069.3,2068.5,0.98282845]
[1773157137679,0.002,2069.3,2068.5,0.98282845]
[1773157138004,1.21013883,2069.3,2068.5,0.98282845]
[1773157138711,0.002,2069.3,2068.5,0.98282845]
[1773157138867,0.4912156,2069.3,2068.5,2.1913949]
[1773157139070,0.4912156,2069.3,2068.5,2.19142683]
[1773157139270,0.4912156,2069.3,2068.5,0.98282845]
[1773157139500,0.4892156,2069.0,2068.0,1.008]
[1773157140504,0.4892156,2068.8,2067.6,1.21008959]
[1773157140938,0.4892156,2068.6,2067.6,0.001]
[1773157141683,0.4892156,2068.4,2067.6,0.001]
[1773157143108,0.4892156,2068.2,2067.5,1e-08]
[1773157143686,1.20872213,2068.3,2067.4,0.001]
[1773157143687,0.4892156,2068.0,2067.4,0.001]
[1773157144726,0.4892156,2068.0,2067.4,1.21023037]
[1773157145028,1.20872213,2068.3,2067.4,0.001]
[1773157145029,1.69793773,2068.3,2067.4,0.001]
[1773157145320,0.4892156,2068.3,2067.4,1.013]
[1773157145685,1.69794265,2068.3,2067.4,1.013]
[1773157146223,1.20872705,2068.3,2067.4,1.013]
[1773157146410,1.69767232,2068.8,2067.8,2.33555746]
[1773157146599,0.4892156,2068.8,2067.8,2.33555746]
[1773157146800,0.4892156,2068.8,2067.8,2.83518456]
[1773157147097,1.6976589,2068.8,2067.9,1.20895594]
[1773157148126,0.4892156,2068.7,2067.9,1.20895594]
[1773157148730,1.69752227,2069.1,2068.0,2.33555746]
[1773157148901,1.69752227,2069.1,2067.9,1.70858304]
[1773157149237,0.4892156,2069.0,2067.9,1.70858304]
[1773157149641,0.4892156,2069.0,2068.0,1.015]
[1773157150550,0.4892156,2068.7,2067.6,4.8363989]
[1773157151034,0.4892156,2068.7,2067.5,2.22414847]
[1773157151235,0.4892156,2068.5,2067.5,2.22414847]
[1773157151432,1.20854684,2068.6,2067.7,2.33555746]
[1773157151617,1.20852256,2068.7,2067.7,2.33555746]
[1773157151813,1.20852256,2068.7,2067.7,2.83518456]
[1773157152014,0.4892156,2068.8,2067.7,2.83518456]
[1773157152313,1.69757633,2069.0,2068.0,2.33555746]
[1773157152626,1.69757633,2069.0,2067.8,0.45403317]
[1773157152826,1.69757633,2069.0,2067.9,2.33555746]
[1773157153142,1.69757633,2069.0,2067.8,0.45403317]
[1773157153376,1.69757633,2069.0,2067.9,3.59287163]
[1773157153635,0.002,2068.8,2067.9,1.25731417]
[1773157153843,0.002,2068.8,2068.0,0.45403317]
[1773157154135,0.002,2068.8,2068.2,2.33555746]
[1773157154634,0.4912156,2069.0,2068.2,2.33555746]
[1773157154635,0.002,2069.0,2068.3,0.45203317]
[1773157155540,0.002,2069.0,2068.4,1.2086637]
[1773157155719,0.002,2069.0,2068.5,2.33672119]
[1773157156138,0.002,2069.0,2068.4,1.66069687]
[1773157156307,0.002,2069.0,2068.4,1.2086637]
[1773157157649,0.002,2069.0,2068.6,1.20854684]
[1773157158355,0.002,2069.0,2068.6,2.22654684]
[1773157159627,0.002,2069.3,2068.7,2.33672119]
[1773157160833,0.002,2069.6,2068.8,0.45003317]
[1773157161033,1e-08,2069.9,2069.4,2.33672119]
[1773157161232,1.20971806,2070.1,2069.4,3.35672119]
[1773157161438,0.48867256,2070.0,2069.4,1.02]
[1773157161660,0.48867256,2069.8,2069.4,1.02]
[1773157164131,0.48867256,2069.8,2069.2,4.8327854]
[1773157164132,0.48867256,2069.7,2069.0,1.022]
[1773157164457,0.48867256,2069.7,2068.8,1.022]
[1773157164658,0.48867256,2069.7,2068.9,0.04833486]
[1773157165558,1.20790433,2069.8,2068.9,0.04833486]
[1773157165559,0.48867256,2070.0,2068.9,0.45003317]
[1773157165765,0.48867256,2070.0,2069.0,2.33672119]
[1773157166166,0.48867256,2070.0,2068.9,0.45003317]
[1773157166334,0.002,2069.5,2069.0,1.20831319]
[1773157166534,0.49067256,2069.5,2068.8,1.022]
[1773157167335,0.48867256,2069.3,2068.6,0.001]
[1773157167547,0.48867256,2069.3,2068.4,1.20966151]
[1773157167846,0.48867256,2069.3,2068.4,1.20965635]
[1773157168652,0.48867256,2069.1,2068.4,1.20965635]
[1773157169164,0.48867256,2069.1,2068.4,0.001]
[1773157169632,0.48867256,2069.1,2068.5,0.04834421]
[1773157169830,1.20818004,2069.3,2068.4,0.001]
[1773157170047,1.20818004,2069.3,2068.4,0.0493443]
[1773157170337,0.48867256,2069.4,2068.4,2.38606549]
[1773157170538,1.69675225,2069.4,2068.4,2.81038338]
[1773157170740,1.69675225,2069.4,2068.5,1.20860526]
[1773157171460,1.21002497,2069.5,2068.7,2.33672119]
[1773157171671,1.21002497,2069.5,2068.8,0.0483372]
[1773157171860,0.002,2069.5,2068.8,0.0483372]
[1773157172163,1.21002411,2069.5,2068.8,0.0483372]
[1773157172561,1.21002411,2069.5,2068.7,2.33672119]
[1773157172562,1.69869667,2069.5,2068.5,1.20860526]
[1773157172962,1.69871732,2069.5,2068.5,3.54532645]
[1773157173269,0.48867256,2069.4,2068.5,1.20860526]
[1773157175275,1.69681003,2069.4,2068.5,3.54532645]
[1773157175771,1.69681003,2069.4,2068.5,1.20860526]
[1773157178380,0.002,2069.5,2068.8,2.33672119]
[1773157178576,1.21002472,2069.5,2068.8,2.33672119]
[1773157178770,1.69869728,2069.5,2068.8,1.027]
[1773157179079,0.48867256,2069.4,2068.8,1.027]
[1773157179478,1.20812748,2069.4,2068.9,1.20837159]
[1773157179691,1.69680004,2069.4,2068.9,1.20837159]
[1773157179856,0.49067256,2069.3,2068.8,1.027]
[1773157180061,0.49067256,2069.3,2068.4,0.001]
[1773157180062,0.48867256,2069.1,2068.4,0.001]
[1773157180354,0.48867256,2069.1,2068.5,0.001]
[1773157180661,0.48867256,2068.9,2068.5,0.001]
[1773157181683,0.48867256,2068.7,2068.5,0.001]
[1773157182582,0.48867256,2068.7,2068.2,0.001]
[1773157182881,0.48867256,2068.5,2068.1,0.001]
[1773157184354,1.69733626,2068.4,2068.1,0.001]
[1773157184756,0.48867256,2068.7,2068.1,0.001]
[1773157185890,0.48867256,2069.0,2068.1,0.001]
[1773157186069,0.48867256,2068.8,2068.1,0.001]
[1773157186669,1.69715828,2068.8,2068.1,0.001]
[1773157186988,0.48976478,2068.7,2068.1,0.001]
[1773157187687,0.48976478,2068.1,2067.7,0.001]
[1773157187998,0.48976478,2067.9,2067.7,0.001]
[1773157188290,0.48976478,2067.9,2067.5,0.001]
[1773157188610,1.69877141,2067.9,2067.5,0.001]
[1773157189165,0.49403254,2067.8,2067.5,0.001]
[1773157190468,0.49403254,2068.1,2067.5,0.001]
[1773157190667,1.20889748,2068.0,2067.5,0.001]
[1773157190866,0.49403254,2068.4,2067.5,0.001]
[1773157192887,0.49403254,2068.2,2067.5,0.001]
[1773157194088,1.20848842,2068.7,2067.6,2.81407045]
[1773157194659,1.20848842,2068.7,2067.7,0.47734926]
[1773157194863,1.70247762,2068.8,2067.9,2.33672119]
[1773157195064,1.70247762,2068.8,2067.8,1.68636367]
[1773157195360,0.002,2068.5,2067.8,1.68636367]
[1773157195983,0.002,2068.5,2067.8,1.20901441]
[1773157196895,1.21060526,2068.5,2067.7,1.21003285]
[1773157197409,0.49403254,2068.4,2067.7,0.001]
[1773157198493,0.49403254,2068.4,2067.7,1.21006956]
[1773157198699,0.002,2068.5,2067.7,1.21006956]
[1773157199769,0.49603254,2068.5,2067.7,1.21006956]
[1773157200396,0.49603254,2068.5,2067.7,0.001]
[1773157200806,0.49403254,2068.4,2067.7,0.001]
[1773157201112,0.49403254,2068.2,2067.7,0.001]
[1773157201267,0.49403254,2068.1,2067.7,0.001]
[1773157201473,0.49403254,2068.1,2067.5,0.001]
[1773157202206,2.33672119,2067.9,2066.6,4.78028308]
[1773157202378,2.33672119,2067.9,2066.7,1.2096579]
[1773157202379,3.37261293,2067.8,2066.7,1.2096579]
[1773157202692,0.49403254,2067.8,2066.7,1.2096579]
[1773157202907,0.49403254,2067.5,2066.1,4.92166726]
[1773157203118,0.49403254,2067.1,2066.1,4.92166726]
[1773157203412,0.49403254,2067.1,2066.1,2.24296442]
[1773157204180,0.49403254,2067.1,2066.1,1.033]
[1773157204413,0.49403254,2066.9,2066.1,2.24296377]
[1773157204704,1.70339786,2067.2,2066.1,2.24296377]
[1773157204879,0.49403254,2067.1,2066.1,2.24296377]
[1773157205084,0.49403254,2066.9,2066.1,2.24296377]
[1773157205579,0.49403254,2067.1,2066.1,1.20996377]
[1773157205797,0.49403254,2067.1,2066.1,1.68731303]
[1773157206111,0.49403254,2067.5,2066.1,3.87121079]
[1773157206320,0.49403254,2067.3,2066.1,1.20996377]
[1773157207221,0.49403254,2066.8,2066.0,1.033]
[1773157207584,0.49403254,2066.8,2066.0,1.08139457]
[1773157207831,0.49403254,2066.8,2066.0,1.033]
[1773157208032,0.49403254,2066.7,2066.0,1.033]
[1773157208318,0.49403254,2066.6,2065.6,1.21030209]
[1773157209208,0.49403254,2066.4,2066.0,0.001]
[1773157209923,1.20974885,2066.6,2066.0,0.001]
[1773157210222,1.70372837,2066.7,2066.0,0.001]
[1773157210399,0.49403254,2067.1,2066.0,0.001]
[1773157211214,0.49403254,2066.9,2066.0,0.001]
[1773157211816,0.49403254,2066.6,2066.0,0.001]
[1773157212519,0.49403254,2066.5,2066.0,0.001]
[1773157213198,1.70383138,2066.5,2066.0,0.001]
[1773157213399,0.49403254,2066.8,2066.0,0.001]
[1773157213617,0.49403254,2066.2,2065.1,5.31961925]
[1773157214206,0.49403254,2066.2,2065.0,2.66124702]
[1773157214389,0.49403254,2066.2,2065.2,0.47734926]
[1773157214991,0.49403254,2066.2,2065.1,1.21059512]
[1773157215222,1.21000919,2066.1,2065.1,1.21059512]
[1773157215425,1.70402232,2066.2,2065.1,4.02466557]
[1773157215830,0.49403254,2066.6,2065.7,2.33672119]
[1773157216122,6.09538063,2067.3,2066.1,0.47734926]
[1773157216123,5.33139666,2067.3,2066.1,0.47734926]
[1773157216329,0.49403254,2067.0,2065.5,0.47734926]
[1773157217197,1.20954085,2066.9,2065.8,1.21018491]
[1773157217606,1.70357339,2066.9,2065.8,1.21018491]
[1773157217929,0.49403254,2066.8,2065.8,1.21018491]
[1773157218725,0.49403254,2066.6,2065.6,1.035]
[1773157219308,1.20977498,2066.5,2065.7,1.2102435]
[1773157219494,1.66415873,2067.1,2065.9,2.81054725]
[1773157219694,1.66415873,2067.1,2066.0,0.46750116]
[1773157220495,0.4547349,2067.1,2066.1,2.34304609]
[1773157220695,1.20924833,2067.4,2066.4,2.81054725]
[1773157221002,1.20924833,2067.4,2066.5,1.035]
[1773157221211,1.20924833,2067.4,2066.5,1.50250116]
[1773157221409,1.20924833,2067.4,2066.6,1.20971644]
[1773157221610,1.66395999,2067.5,2066.6,1.20971644]
[1773157221928,1.20907288,2067.7,2066.6,1.6772176]
[1773157222434,1.20907288,2067.7,2066.7,2.34304609]
[1773157222603,1.21096784,2067.9,2067.0,2.81054725]
[1773157223102,1.21095925,2067.9,2067.0,2.81054725]
[1773157223422,0.002,2068.1,2067.6,2.34304609]
[1773157223619,0.002,2068.1,2067.6,3.37904609]
[1773157223801,0.002,2068.1,2067.6,1.036]
[1773157224348,0.002,2068.4,2067.6,3.84654725]
[1773157224497,0.002,2068.4,2067.7,0.46750116]
[1773157225249,0.002,2068.7,2067.9,2.81054725]
[1773157225529,0.002,2068.7,2068.0,1.20889748]
[1773157227102,0.002,2068.7,2067.7,1.20907288]
[1773157229036,0.002,2068.7,2067.7,1.67657404]
[1773157229332,0.002,2068.7,2067.8,0.46750116]
[1773157229529,0.002,2068.7,2067.9,1.20895594]
[1773157229735,0.002,2069.0,2068.1,2.81054725]
[1773157229736,1.21035189,2069.0,2068.1,2.81054725]
[1773157230525,1.21035189,2069.0,2068.1,0.46750116]
[1773157230899,0.4547349,2068.9,2068.2,1.035]
[1773157231131,0.4547349,2068.7,2067.7,1.036]
[1773157231331,0.4547349,2068.7,2067.8,2.34304609]
[1773157231531,0.4547349,2068.7,2067.7,1.036]
[1773157231532,1.20854684,2068.6,2067.7,2.24505589]
[1773157231712,1.20854684,2068.6,2067.7,2.24507114]
[1773157231713,0.4547349,2068.5,2067.7,2.24507114]
[1773157233034,0.4547349,2068.5,2067.7,1.036]
[1773157233237,0.4547349,2068.5,2066.9,4.83794537]
[1773157233238,0.4547349,2068.2,2067.1,1.035]
[1773157233613,0.4547349,2068.0,2067.1,1.035]
[1773157233810,0.4547349,2068.0,2067.1,2.2444224]
[1773157234012,0.4547349,2067.9,2067.1,1.035]
[1773157235520,1.66374931,2067.8,2067.1,1.035]
[1773157236841,1.66374931,2067.8,2067.6,0.001]
[1773157237048,1.66374931,2067.8,2067.1,1.035]
[1773157237241,0.4547349,2067.7,2066.5,1.2097605]
[1773157237442,0.4547349,2067.3,2066.5,1.035]
[1773157237646,0.4547349,2067.1,2066.5,1.035]
[1773157238440,1.20936532,2067.2,2066.5,2.2447716]
[1773157238815,1.20936532,2067.2,2066.6,0.04838865]
[1773157239016,1.20935349,2067.3,2066.6,0.04838865]
[1773157239239,1.66401599,2067.4,2066.6,0.04838865]
[1773157239614,1.66401599,2067.4,2066.7,1.2096579]
[1773157239820,0.4547349,2067.9,2066.8,0.04838397]
[1773157240827,0.4547349,2067.9,2066.7,1.2096579]
[1773157241252,0.4547349,2067.6,2066.6,1.20969004]
[1773157241629,0.4547349,2067.6,2066.5,2.24474351]
[1773157241956,1.66392474,2067.5,2066.5,2.24474351]
[1773157242653,0.4547349,2067.4,2066.5,1.035]
[1773157243478,0.4547349,2067.3,2066.5,1.035]
[1773157243867,1.66410022,2067.2,2066.5,1.035]
[1773157244070,0.4547349,2067.1,2066.5,1.035]
[1773157244430,0.4547349,2067.1,2066.1,1.96213611]
[1773157245135,0.4547349,2067.0,2066.1,0.75217009]
[1773157245437,0.4547349,2066.7,2066.0,1.034]
[1773157245938,1.20971644,2066.6,2066.0,1.034]
[1773157246454,1.20971644,2066.6,2066.0,2.24406108]
[1773157246838,1.20971644,2066.6,2066.0,1.034]
[1773157247042,1.20971644,2066.6,2066.0,2.24406095]
[1773157247340,1.20971644,2066.6,2066.0,1.034]
[1773157247656,0.49720563,2066.5,2066.0,1.034]
[1773157247858,1.20983352,2066.4,2066.0,1.034]
[1773157248560,0.49720563,2066.5,2066.0,1.034]
[1773157248856,1.70702349,2066.5,2066.0,1.034]
[1773157249060,0.49720563,2066.4,2066.0,1.034]
[1773157249356,0.49720563,2066.4,2066.0,1.035]
[1773157249778,0.49720563,2066.4,2065.9,0.001]
[1773157249932,0.48950982,2066.2,2065.7,0.001]
[1773157251036,1.20989207,2066.3,2065.7,0.001]
[1773157251563,1.69940189,2066.3,2065.7,0.001]
[1773157255242,1.69941879,2066.3,2065.7,0.001]
[1773157256745,0.48950982,2066.2,2065.7,0.001]
[1773157257072,0.48950982,2066.2,2065.4,0.001]
[1773157258460,0.48950982,2066.0,2065.4,0.001]
[1773157258671,0.48950982,2065.7,2064.9,1.21067983]
[1773157258968,0.48950982,2065.7,2064.8,2.24072319]
[1773157259362,0.48950982,2065.7,2064.9,0.04842849]
[1773157260081,1.2101006,2066.0,2065.2,0.48297439]
[1773157260241,1.2101006,2066.0,2065.3,0.04841911]
[1773157260574,1.2101006,2066.0,2064.9,0.48297439]
[1773157260772,1.69961042,2066.0,2065.0,1.21065375]
[1773157261077,1.69961042,2066.0,2065.6,0.001]
[1773157261596,1.69961042,2066.0,2065.0,1.21065375]
[1773157261597,0.48950982,2065.9,2065.0,1.21065375]
[1773157261876,0.48950982,2065.7,2064.9,1.21070486]
[1773157262388,0.48950982,2065.7,2065.1,0.001]
[1773157262744,1.69981191,2065.6,2065.1,0.001]
[1773157263050,0.48950982,2065.5,2065.1,0.001]
[1773157263800,0.48950982,2065.4,2064.8,0.04843084]
[1773157263976,0.48950982,2065.4,2064.5,1.21090498]
[1773157264283,0.48950982,2065.1,2064.2,1.029]
[1773157264503,0.48950982,2064.5,2063.9,0.84385703]
[1773157264644,1.70051543,2064.4,2063.9,0.84385703]
[1773157264846,0.48950982,2064.4,2063.9,2.05512372]
[1773157265070,0.48950982,2064.7,2063.9,2.05512372]
[1773157265378,0.48950982,2064.7,2063.9,1.60407567]
[1773157265874,0.48950982,2064.7,2063.9,1.55562372]
[1773157266074,1.21068127,2065.0,2064.0,0.04844961]
[1773157266256,0.48950982,2064.9,2063.9,1.55562372]
[1773157266456,0.48950982,2064.9,2063.9,1.5556384]
[1773157266666,1.21077101,2064.8,2063.9,1.5556384]
[1773157266890,0.48950982,2065.3,2064.1,4.95575508]
[1773157267063,0.48950982,2065.3,2064.2,0.48297439]
[1773157267392,1.21045396,2065.4,2064.2,1.028]
[1773157267393,0.48950982,2065.0,2064.2,1.028]
[1773157267546,0.48950982,2064.7,2064.2,1.028]
[1773157267742,0.48950982,2064.7,2063.9,0.34435703]
[1773157267974,0.48950982,2064.7,2063.9,1.55565269]
[1773157268846,2.34304609,2065.2,2063.9,1.55565269]
[1773157268847,0.48950982,2065.1,2064.1,0.48297439]
[1773157269193,4.84186751,2065.4,2064.1,0.48297439]
[1773157269194,1.69997131,2065.4,2064.1,3.09568338]
[1773157269344,1.69997131,2065.4,2064.2,0.48297439]
[1773157269542,0.48950982,2065.4,2064.3,1.50997439]
[1773157269745,0.48950982,2065.4,2064.4,0.48297439]
[1773157269944,1.69993557,2065.4,2064.4,0.48297439]
[1773157270381,0.48950982,2065.3,2064.3,1.027]
[1773157270851,1.21039926,2065.5,2064.4,1.69398]
[1773157271195,1.21039926,2065.5,2064.5,0.48297439]
[1773157271678,0.48950982,2066.1,2065.0,0.48297439]
[1773157271877,0.48950982,2066.1,2065.1,1.027]
[1773157272081,0.48950982,2065.8,2065.1,1.027]
[1773157272385,0.48950982,2065.8,2064.6,1.027]
[1773157272556,0.48950982,2065.8,2064.7,0.04843318]
[1773157272757,0.49150982,2066.4,2064.9,0.48297439]
[1773157272969,0.48950982,2066.2,2064.9,0.48297439]
[1773157273170,0.48950982,2066.0,2064.9,0.48297439]
[1773157274472,1.20989207,2066.3,2064.8,3.5538171]
[1773157274473,1.21184339,2066.4,2065.2,0.48297439]
[1773157274656,1.70135321,2066.4,2065.2,0.48297439]
[1773157274980,1.70135321,2066.4,2065.3,2.23847789]
[1773157275189,0.48950982,2066.3,2065.3,1.21047789]
[1773157275495,0.48950982,2066.1,2065.3,1.028]
[1773157275653,0.002,2065.5,2065.3,1.028]
[1773157276083,0.48950982,2066.1,2065.3,1.028]
[1773157276455,1.70135321,2066.4,2065.3,1.028]
[1773157276767,0.002,2065.7,2065.4,1.21041928]
[1773157279008,0.002,2066.0,2065.4,1.21041928]
[1773157280074,0.002,2066.0,2065.3,2.23843368]
[1773157280685,0.002,2066.0,2065.3,1.028]
[1773157280686,0.4702449,2066.0,2065.3,1.028]
[1773157280873,0.4682449,2065.8,2065.3,1.028]
[1773157281078,0.4682449,2065.5,2064.6,0.001]
[1773157281278,2.851072,2065.8,2064.6,0.001]
[1773157281279,0.4682449,2065.2,2064.6,0.001]
[1773157282305,0.4682449,2065.2,2064.6,1.21188797]
[1773157282678,0.4682449,2065.8,2064.7,0.04843318]
[1773157282882,1.6784884,2065.7,2064.8,1.21077101]
[1773157283409,0.4682449,2065.6,2064.8,1.21077101]
[1773157283707,0.4682449,2065.6,2064.7,1.2107824]
[1773157283912,1.21017633,2065.9,2064.8,2.34430748]
[1773157284079,0.4682449,2065.7,2064.7,1.2107824]
[1773157284521,0.4682449,2065.7,2064.8,0.04843084]
[1773157284881,0.4682449,2065.5,2064.8,1.21072166]
[1773157285511,0.4682449,2065.5,2064.9,0.04842849]
[1773157285686,0.4682449,2065.5,2064.8,1.21072166]
[1773157285885,0.4682449,2065.5,2064.8,1.2591525]
[1773157286296,0.4682449,2065.8,2064.8,1.2591525]
[1773157287016,0.4682449,2065.7,2064.8,1.21072166]
[1773157287796,0.4682449,2065.6,2064.7,1.21078863]
[1773157288112,0.4682449,2065.5,2064.7,1.21078863]
[1773157289016,0.4682449,2065.2,2064.6,0.001]
[1773157289913,0.4682449,2065.6,2064.6,0.001]
[1773157290214,1.67855734,2065.6,2064.6,0.001]
[1773157290587,0.4682449,2065.5,2064.6,0.001]
[1773157290898,0.4682449,2065.4,2064.6,0.001]
[1773157291082,1.67868397,2065.4,2064.6,0.001]
[1773157291286,2.34430748,2065.7,2064.9,0.001]
[1773157291287,0.4682449,2065.7,2064.9,0.001]
[1773157291512,0.4682449,2065.6,2064.9,0.001]
[1773157291717,0.4702449,2065.5,2064.9,0.001]
[1773157293307,0.4682449,2065.4,2064.9,0.001]
[1773157294618,0.4682449,2065.1,2064.6,0.001]
[1773157294790,0.4682449,2065.0,2064.6,0.001]